bitfinex-derivatives/quotes_BTCF0:USTF0_20260131
["timestamp","ask_amount","ask_price","bid_price","bid_amount"]
[1769894616822,0.012927,77461.0,77437.0,0.16274711]
[1769894617028,0.012927,77459.0,77437.0,0.16274711]
[1769894617228,0.09308,77468.0,77437.0,0.16274711]
[1769894617723,0.09308,77468.0,77439.0,0.15708683]
[1769894617928,0.09308,77468.0,77446.0,0.15708683]
[1769894618133,0.09308,77468.0,77447.0,0.15708683]
[1769894618329,0.012924,77475.0,77451.0,0.15708683]
[1769894618527,0.012924,77475.0,77453.0,0.15708683]
[1769894619328,0.29301396,77498.0,77459.0,0.15289857]
[1769894619536,0.09308,77510.0,77479.0,0.15289857]
[1769894619736,0.09308,77514.0,77481.0,0.15289857]
[1769894620027,0.128172,77513.0,77483.0,0.15289857]
[1769894620231,0.012919,77507.0,77483.0,0.15289857]
[1769894620628,0.105998,77514.0,77487.0,0.15457643]
[1769894620935,0.29301396,77499.0,77470.0,0.15457643]
[1769894621127,0.29301396,77498.0,77469.0,0.09308]
[1769894621327,0.29301396,77498.0,77470.0,0.09308]
[1769894621933,0.012921,77493.0,77470.0,0.09308]
[1769894622338,0.27793496,77498.0,77470.0,0.09308]
[1769894622537,0.29085496,77498.0,77470.0,0.09308]
[1769894622931,0.29085496,77498.0,77470.0,0.09408]
[1769894623131,0.29085496,77498.0,77471.0,0.012925]
[1769894623331,0.27793496,77498.0,77474.0,0.012924]
[1769894624837,0.09308,77499.0,77470.0,0.09308]
[1769894625139,0.105958,77515.0,77490.0,0.18502267]
[1769894625336,0.105958,77515.0,77492.0,0.012921]
[1769894625836,0.012917,77519.0,77497.0,0.012921]
[1769894626339,0.30963221,77517.0,77494.0,0.012921]
[1769894627537,0.29671521,77517.0,77496.0,0.012921]
[1769894627931,0.012916,77524.0,77492.0,0.17171861]
[1769894628133,0.09304,77526.0,77492.0,0.17171861]
[1769894628328,0.09304,77526.0,77505.0,0.012919]
[1769894628535,0.09304,77526.0,77507.0,0.012919]
[1769894628836,0.29671521,77535.0,77507.0,0.012919]
[1769894629134,0.064548,77566.0,77494.0,0.105961]
[1769894629135,0.29671521,77523.0,77494.0,0.105961]
[1769894629439,0.29671521,77516.0,77494.0,0.09304]
[1769894629638,0.012918,77512.0,77494.0,0.09304]
[1769894630339,0.29671521,77515.0,77494.0,0.105961]
[1769894630734,0.09304,77516.0,77499.0,0.01292]
[1769894631235,0.29671521,77526.0,77503.0,0.01292]
[1769894631438,0.012916,77524.0,77504.0,0.09304]
[1769894631639,0.4334,77525.0,77504.0,0.09304]
[1769894631830,0.09304,77525.0,77505.0,0.012919]
[1769894632035,0.09304,77525.0,77507.0,0.012919]
[1769894632431,0.09304,77525.0,77505.0,0.17253224]
[1769894632636,0.29671521,77521.0,77495.0,0.09304]
[1769894632837,0.09304,77525.0,77503.0,0.01292]
[1769894633036,0.09304,77525.0,77499.0,0.01292]
[1769894633340,0.09304,77525.0,77502.0,0.01292]
[1769894633642,0.09304,77525.0,77504.0,0.012919]
[1769894633841,0.09304,77525.0,77506.0,0.012919]
[1769894634141,0.09304,77525.0,77504.0,0.09304]
[1769894634438,0.38975521,77525.0,77504.0,0.09304]
[1769894634635,0.36075521,77525.0,77504.0,0.09304]
[1769894635039,0.36075521,77525.0,77505.0,0.012919]
[1769894635230,0.06404,77525.0,77505.0,0.012919]
[1769894635534,0.06404,77525.0,77507.0,0.012919]
[1769894636638,0.06404,77525.0,77509.0,0.012919]
[1769894637236,0.06404,77525.0,77506.0,0.012919]
[1769894637737,0.012918,77512.0,77492.0,0.012921]
[1769894637932,0.29671521,77513.0,77493.0,0.093]
[1769894638130,0.29671521,77513.0,77494.0,0.012921]
[1769894638336,0.012917,77522.0,77494.0,0.17240668]
[1769894638545,0.076956,77525.0,77494.0,0.17240668]
[1769894638845,0.06404,77525.0,77507.0,0.012919]
[1769894639038,0.06404,77525.0,77508.0,0.093]
[1769894639538,0.06404,77525.0,77511.0,0.012918]
[1769894640143,0.06404,77525.0,77508.0,0.093]
[1769894641342,0.06404,77525.0,77509.0,0.012919]
[1769894641634,0.00904,77525.0,77509.0,0.012919]
[1769894642231,0.093,77538.0,77510.0,0.012918]
[1769894642436,0.093,77538.0,77511.0,0.17379595]
[1769894642738,0.093,77538.0,77519.0,0.012917]
[1769894642941,0.012913,77545.0,77523.0,0.18478225]
[1769894643137,0.01291,77562.0,77536.0,0.012914]
[1769894643336,0.01291,77562.0,77538.0,0.012914]
[1769894643539,0.093,77565.0,77539.0,0.17186625]
[1769894643937,0.012906,77587.0,77548.0,0.012912]
[1769894643938,0.012908,77571.0,77548.0,0.012912]
[1769894644132,0.012908,77571.0,77549.0,0.093]
[1769894644335,0.012911,77558.0,77536.0,0.012914]
[1769894644531,0.012911,77558.0,77531.0,0.093]
[1769894644532,0.29671521,77558.0,77531.0,0.093]
[1769894644733,0.093,77562.0,77531.0,0.093]
[1769894644734,0.29671521,77552.0,77531.0,0.093]
[1769894644939,0.29671521,77549.0,77525.0,0.012916]
[1769894645243,0.30962721,77547.0,77524.0,0.012916]
[1769894645539,0.012911,77554.0,77529.0,0.012915]
[1769894645737,0.012911,77554.0,77518.0,0.117799]
[1769894645738,0.093,77561.0,77541.0,0.117799]
[1769894646043,0.012908,77574.0,77548.0,0.012912]
[1769894646236,0.012908,77574.0,77549.0,0.3402]
[1769894646637,0.093,77575.0,77550.0,0.012912]
[1769894646638,0.012908,77572.0,77550.0,0.012912]
[1769894646943,0.012909,77569.0,77549.0,0.3402]
[1769894647734,0.093,77575.0,77553.0,0.11911217]
[1769894647935,0.093,77575.0,77557.0,0.13202317]
[1769894648142,0.012907,77579.0,77557.0,0.13202317]
[1769894648337,0.093,77587.0,77563.0,0.01291]
[1769894648534,0.012906,77586.0,77565.0,0.012909]
[1769894648735,0.093,77587.0,77564.0,0.08910002]
[1769894648736,0.27703063,77583.0,77564.0,0.08910002]
[1769894649144,0.27703063,77572.0,77555.0,0.093]
[1769894649447,0.012909,77566.0,77555.0,0.093]
[1769894649638,0.01291,77561.0,77546.0,0.09296]
[1769894650646,0.27703063,77572.0,77546.0,0.09296]
[1769894650842,0.27703063,77569.0,77546.0,0.09296]
[1769894651042,0.09296,77573.0,77530.0,0.27127278]
[1769894651043,0.27703063,77564.0,77540.0,0.012913]
[1769894651845,0.01291,77559.0,77537.0,0.012914]
[1769894652045,0.012911,77557.0,77535.0,0.09296]
[1769894652246,0.09296,77563.0,77544.0,0.012913]
[1769894652548,0.27703063,77593.0,77558.0,0.12302496]
[1769894652847,0.012906,77588.0,77564.0,0.012909]
[1769894653345,0.012906,77586.0,77564.0,0.012909]
[1769894653848,0.012908,77589.0,77564.0,0.012909]
[1769894654048,0.012908,77589.0,77562.0,0.12313682]
[1769894654248,0.36999063,77593.0,77562.0,0.12313682]
[1769894654448,0.012908,77592.0,77562.0,0.12313682]
[1769894654750,0.012903,77605.0,77577.0,0.13695431]
[1769894654951,0.012903,77603.0,77578.0,0.55708731]
[1769894655144,0.62721842,77646.0,77582.0,0.12404731]
[1769894655352,0.27703063,77624.0,77582.0,0.12404731]
[1769894655553,0.27703063,77624.0,77583.0,0.13695331]
[1769894655850,0.012901,77613.0,77588.0,0.012905]
[1769894656050,0.012902,77611.0,77589.0,0.09296]
[1769894656545,0.012908,77575.0,77563.0,0.09296]
[1769894656747,0.09296,77585.0,77563.0,0.09296]
[1769894656946,0.09296,77590.0,77564.0,0.1371705]
[1769894657247,0.09296,77590.0,77563.0,0.09296]
[1769894657248,0.09296,77593.0,77570.0,0.1371695]
[1769894657545,0.09296,77593.0,77563.0,0.09296]
[1769894657546,0.09296,77605.0,77572.0,0.1242615]
[1769894657746,0.27703063,77604.0,77573.0,0.09296]
[1769894657951,0.012905,77593.0,77573.0,0.09296]
[1769894658150,0.025812,77596.0,77573.0,0.09296]
[1769894658342,0.012908,77592.0,77573.0,0.09296]
[1769894658547,0.012905,77594.0,77573.0,0.08906269]
[1769894658548,0.27703063,77585.0,77573.0,0.08906269]
[1769894658750,0.012907,77580.0,77573.0,6.9e-07]
[1769894658946,0.012908,77577.0,77573.0,6.9e-07]
[1769894659250,0.012908,77577.0,77564.0,0.09296]
[1769894659448,0.28993663,77585.0,77564.0,0.09296]
[1769894659648,0.012908,77582.0,77564.0,0.09296]
[1769894660050,0.012908,77580.0,77564.0,0.09296]
[1769894660250,0.012908,77581.0,77564.0,0.105869]
[1769894660445,0.012908,77581.0,77564.0,0.09296]
[1769894660643,0.012908,77580.0,77564.0,0.09296]
[1769894660844,0.054774,77584.0,77564.0,0.09296]
[1769894661355,0.041868,77584.0,77564.0,0.09296]
[1769894662149,0.012906,77583.0,77564.0,0.09296]
[1769894662354,0.27703063,77583.0,77564.0,0.09296]
[1769894662556,0.012907,77579.0,77564.0,0.09296]
[1769894663354,0.012907,77582.0,77564.0,0.09296]
[1769894664351,0.012907,77582.0,77564.0,0.09396]
[1769894664655,0.041868,77584.0,77564.0,0.09396]
[1769894664851,0.27703063,77611.0,77565.0,0.13101111]
[1769894665057,0.012903,77605.0,77583.0,0.012906]
[1769894665250,0.012903,77603.0,77584.0,0.09292]
[1769894665457,0.09292,77608.0,77587.0,0.012906]
[1769894665757,0.09292,77608.0,77589.0,0.012905]
[1769894665946,0.27703063,77607.0,77582.0,0.012906]
[1769894666151,0.012903,77602.0,77582.0,0.012906]
[1769894666453,0.27703063,77603.0,77572.0,0.09292]
[1769894666648,0.012905,77593.0,77573.0,0.012908]
[1769894666848,0.012904,77596.0,77575.0,0.012908]
[1769894667051,0.08852288,77597.0,77573.0,0.13268835]
[1769894667254,0.43288,77607.0,77575.0,0.13268835]
[1769894667448,0.43288,77607.0,77572.0,0.09292]
[1769894667449,0.43288,77607.0,77589.0,0.012905]
[1769894667649,0.09292,77607.0,77587.0,0.09292]
[1769894667848,0.012901,77614.0,77593.0,0.012905]
[1769894668059,0.053821,77615.0,77593.0,0.012905]
[1769894668652,0.27703063,77597.0,77575.0,0.001]
[1769894668853,0.27703063,77606.0,77575.0,0.001]
[1769894669054,0.012902,77611.0,77588.0,0.13669965]
[1769894669251,0.012902,77611.0,77589.0,0.09292]
[1769894669957,0.012902,77611.0,77589.0,0.105825]
[1769894670252,0.012902,77611.0,77590.0,0.13669965]
[1769894670558,0.012901,77617.0,77593.0,0.14960465]
[1769894670857,0.012902,77612.0,77593.0,0.13669965]
[1769894671054,0.0129,77619.0,77596.0,0.012904]
[1769894671258,0.012901,77617.0,77594.0,0.012904]
[1769894671556,0.012901,77617.0,77596.0,0.012904]
[1769894671957,0.0129,77620.0,77596.0,0.012904]
[1769894673147,0.012901,77618.0,77596.0,0.012904]
[1769894673345,0.012901,77618.0,77594.0,0.13673307]
[1769894673755,0.012901,77618.0,77595.0,0.16671493]
[1769894673945,0.0129,77623.0,77599.0,0.15381093]
[1769894674146,0.0129,77623.0,77600.0,0.09292]
[1769894674357,0.012901,77618.0,77600.0,0.09292]
[1769894674659,0.0129,77625.0,77600.0,0.09292]
[1769894675258,0.22593063,77626.0,77601.0,0.012903]
[1769894676158,0.0129,77623.0,77604.0,0.012903]
[1769894676353,0.4328,77627.0,77600.0,0.09292]
[1769894676762,0.012901,77617.0,77600.0,0.09292]
[1769894677155,0.09292,77617.0,77600.0,0.09292]
[1769894677558,0.29496461,77607.0,77587.0,0.105826]
[1769894677755,0.29496461,77605.0,77583.0,0.012906]
[1769894677956,0.012904,77600.0,77583.0,0.012906]
[1769894678558,0.012905,77591.0,77566.0,0.09299837]
[1769894678756,0.09288,77592.0,77574.0,0.012908]
[1769894679063,0.012905,77589.0,77571.0,0.012908]
[1769894679356,0.30786961,77589.0,77568.0,0.012909]
[1769894679553,0.29496461,77591.0,77566.0,0.00011837]
[1769894679757,0.30787061,77586.0,77559.0,0.01291]
[1769894680359,0.30787061,77586.0,77545.0,0.2835641]
[1769894680360,0.30787061,77583.0,77555.0,0.012911]
[1769894680863,0.29496461,77573.0,77546.0,0.09288]
[1769894681057,0.30787361,77569.0,77546.0,0.09288]
[1769894681255,0.09299837,77572.0,77535.0,0.09292]
[1769894681256,0.012911,77553.0,77535.0,0.09292]
[1769894681461,9.339e-05,77552.0,77533.0,0.09292]
[1769894681657,0.012912,77551.0,77533.0,0.09292]
[1769894681860,0.28599543,77552.0,77533.0,0.09292]
[1769894682066,0.012913,77542.0,77524.0,0.00013615]
[1769894682563,0.012914,77539.0,77524.0,0.00013615]
[1769894682756,0.29881704,77533.0,77509.0,0.33988]
[1769894682956,0.29881704,77530.0,77498.0,0.01292]
[1769894683567,0.012917,77522.0,77492.0,0.105841]
[1769894683759,0.00015342,77521.0,77492.0,0.105841]
[1769894683961,0.012918,77513.0,77492.0,0.09292]
[1769894684161,0.09292,77512.0,77492.0,0.09292]
[1769894686060,0.00015342,77521.0,77496.0,0.27815637]
[1769894686263,0.00015342,77521.0,77492.0,0.09292]
[1769894686264,0.09292,77536.0,77510.0,0.29107437]
[1769894686465,0.43288,77540.0,77513.0,0.012918]
[1769894686664,0.43288,77540.0,77516.0,0.012917]
[1769894686867,0.43288,77540.0,77512.0,0.27815637]
[1769894687170,0.43288,77540.0,77520.0,0.012917]
[1769894687171,0.09292,77540.0,77520.0,0.012917]
[1769894687470,0.0001011,77539.0,77521.0,0.09292]
[1769894687670,0.012911,77557.0,77530.0,0.012915]
[1769894687864,0.01291,77561.0,77531.0,0.09296]
[1769894688064,0.01291,77561.0,77532.0,0.012915]
[1769894688266,0.012912,77548.0,77531.0,0.09296]
[1769894688568,0.105872,77548.0,77531.0,0.09296]
[1769894689967,0.09296,77561.0,77537.0,0.012914]
[1769894690167,0.01291,77564.0,77537.0,0.29107037]
[1769894690368,0.09296,77573.0,77547.0,0.012912]
[1769894690568,0.09296,77573.0,77548.0,0.09296]
[1769894690773,0.09296,77573.0,77549.0,0.012912]
[1769894690974,0.09296,77573.0,77553.0,0.012911]
[1769894691273,0.09296,77573.0,77549.0,0.012912]
[1769894692263,0.28590204,77572.0,77506.0,0.27815637]
[1769894692467,0.28590204,77572.0,77498.0,0.01292]
[1769894692468,0.28590204,77558.0,77514.0,0.27815637]
[1769894692674,0.012913,77544.0,77515.0,0.012918]
[1769894692971,0.012913,77542.0,77516.0,0.09296]
[1769894693164,0.012913,77542.0,77517.0,0.09296]
[1769894694176,0.012913,77542.0,77517.0,0.105877]
[1769894694476,0.053873,77543.0,77517.0,0.105877]
[1769894694971,0.33977504,77543.0,77517.0,0.09296]
[1769894695276,0.012914,77536.0,77517.0,0.09296]
[1769894695473,0.28590204,77536.0,77504.0,0.09296]
[1769894695675,0.053873,77543.0,77505.0,0.27815637]
[1769894695975,0.012914,77536.0,77508.0,0.29107537]
[1769894698978,0.012915,77533.0,77508.0,0.29107537]
[1769894699776,0.28590204,77529.0,77502.0,0.01292]
[1769894699973,0.28590204,77527.0,77494.0,0.27815637]
[1769894700479,0.28590204,77537.0,77500.0,0.27815637]
[1769894700778,0.09296,77536.0,77502.0,0.27815637]
[1769894701369,0.064545,77570.0,77501.0,0.09296]
[1769894701370,0.012914,77539.0,77514.0,0.27815637]
[1769894701577,0.01291,77562.0,77535.0,0.29107037]
[1769894701772,0.01291,77562.0,77517.0,0.012917]
[1769894701773,0.012908,77572.0,77542.0,0.27815637]
[1769894701972,0.09296,77581.0,77536.0,0.43304]
[1769894701973,0.09296,77581.0,77552.0,0.29106737]
[1769894702173,0.012908,77576.0,77553.0,0.37111637]
[1769894702373,0.012907,77580.0,77553.0,0.37111637]
[1769894702781,0.012909,77565.0,77543.0,0.43304]
[1769894702985,0.012909,77568.0,77544.0,0.012913]
[1769894703177,0.012909,77565.0,77543.0,0.43304]
[1769894703575,0.09296,77569.0,77543.0,0.43304]
[1769894703576,0.28590204,77568.0,77543.0,0.43304]
[1769894704080,0.28590204,77568.0,77543.0,0.09296]
[1769894704477,0.01291,77563.0,77543.0,0.09296]
[1769894704678,0.01291,77561.0,77543.0,0.09296]
[1769894705084,0.012911,77558.0,77537.0,0.012914]
[1769894705284,0.09296,77557.0,77530.0,0.27815637]
[1769894705785,0.09296,77557.0,77532.0,0.012915]
[1769894705985,0.105871,77557.0,77530.0,0.27815637]
[1769894706682,0.09296,77557.0,77530.0,0.27815637]
[1769894706890,0.09296,77557.0,77537.0,0.27815637]
[1769894707184,0.012909,77567.0,77538.0,0.37761893]
[1769894707185,0.09296,77564.0,77538.0,0.37761893]
[1769894707383,0.09296,77564.0,77539.0,0.09296]
[1769894707578,0.09296,77564.0,77540.0,0.28465893]
[1769894707784,0.09296,77577.0,77555.0,0.28465893]
[1769894707983,0.012907,77582.0,77559.0,0.01291]
[1769894708285,0.09296,77585.0,77561.0,0.01291]
[1769894708679,0.27303299,77583.0,77538.0,0.28465893]
[1769894708876,0.27303299,77577.0,77538.0,0.28465893]
[1769894709075,0.27303299,77573.0,77524.0,0.28465893]
[1769894709276,0.01291,77561.0,77533.0,0.012915]
[1769894709480,0.09296,77572.0,77542.0,0.28465893]
[1769894709682,0.09296,77572.0,77544.0,0.28465893]
[1769894709988,0.09296,77572.0,77546.0,0.28465893]
[1769894710181,0.09296,77572.0,77547.0,0.09296]
[1769894710394,0.09296,77572.0,77534.0,0.34008]
[1769894710395,0.012912,77549.0,77539.0,0.09296]
[1769894710580,0.012911,77554.0,77539.0,0.09296]
[1769894710781,0.28594199,77565.0,77539.0,0.09296]
[1769894710983,0.27303299,77556.0,77529.0,0.09296]
[1769894711191,0.012911,77554.0,77529.0,0.09296]
[1769894711384,0.012911,77554.0,77544.0,0.001]
[1769894712487,0.09296,77555.0,77529.0,0.09296]
[1769894712689,0.27303299,77550.0,77529.0,0.09296]
[1769894712890,0.09296,77555.0,77529.0,0.09296]
[1769894712891,0.27303299,77548.0,77529.0,0.09296]
[1769894713083,0.012913,77544.0,77529.0,0.09296]
[1769894714000,0.27303299,77569.0,77539.0,0.012913]
[1769894714197,0.01291,77559.0,77539.0,0.012913]
[1769894714400,0.14054151,77558.0,77539.0,0.012913]
[1769894714599,0.01291,77559.0,77531.0,0.28465893]
[1769894714799,0.01291,77559.0,77536.0,0.012914]
[1769894715001,0.01291,77559.0,77538.0,0.012914]
[1769894715198,0.01291,77559.0,77539.0,0.09296]
[1769894715399,0.01291,77559.0,77540.0,0.012913]
[1769894715599,0.01291,77562.0,77540.0,0.012913]
[1769894715795,0.04887,77568.0,77539.0,0.09296]
[1769894716001,0.13759438,77567.0,77540.0,0.28465893]
[1769894716202,0.13759438,77566.0,77540.0,0.28465893]
[1769894716396,0.061779,77568.0,77540.0,0.28465893]
[1769894716598,0.13763357,77567.0,77540.0,0.28465893]
[1769894716799,0.15054257,77566.0,77544.0,0.012913]
[1769894717000,0.012909,77566.0,77544.0,0.012913]
[1769894717402,0.04887,77568.0,77550.0,0.012912]
[1769894717603,0.012908,77574.0,77552.0,0.012911]
[1769894717905,0.13763013,77573.0,77552.0,0.012911]
[1769894718206,0.37188,77588.0,77552.0,0.012911]
[1769894718207,0.012906,77586.0,77563.0,0.01291]
[1769894718401,0.012906,77584.0,77563.0,0.01291]
[1769894718606,0.27303299,77575.0,77550.0,0.2707498]
[1769894718807,0.37890099,77574.0,77551.0,0.012912]
[1769894719708,0.37890099,77574.0,77552.0,0.09296]
[1769894719903,0.37890099,77574.0,77553.0,0.012911]
[1769894721007,0.012908,77572.0,77553.0,0.012911]
[1769894721507,0.012907,77581.0,77562.0,0.01291]
[1769894721708,0.012907,77581.0,77563.0,0.09296]
[1769894722107,0.09296,77585.0,77563.0,0.09296]
[1769894722709,0.09296,77585.0,77565.0,0.012909]
[1769894722904,0.041866,77585.0,77565.0,0.012909]
[1769894723507,0.02896,77585.0,77563.0,0.09296]
[1769894723711,0.02896,77585.0,77563.0,0.37761893]
[1769894724212,0.02896,77585.0,77567.0,0.012909]
[1769894724611,0.012906,77584.0,77561.0,0.01291]
[1769894724811,0.012906,77584.0,77563.0,0.01291]
[1769894725313,0.02896,77585.0,77567.0,0.012909]
[1769894725514,0.02896,77585.0,77569.0,0.012909]
[1769894725711,0.02896,77585.0,77568.0,0.012909]
[1769894726307,0.02896,77585.0,77570.0,0.012908]
[1769894727208,0.02896,77585.0,77566.0,0.012909]
[1769894728804,0.02896,77585.0,77568.0,0.012909]
[1769894729612,0.02896,77585.0,77564.0,0.09296]
[1769894729805,0.012903,77602.0,77575.0,0.28465893]
[1769894730008,0.041823,77605.0,77581.0,0.012907]
[1769894730210,0.041823,77605.0,77583.0,0.012906]
[1769894730415,0.041823,77605.0,77588.0,0.012905]
[1769894730608,0.34,77613.0,77589.0,0.09292]
[1769894730808,0.352901,77613.0,77590.0,0.2707498]
[1769894731109,0.012901,77613.0,77593.0,0.012905]
[1769894731409,0.09292,77614.0,77599.0,0.012904]
[1769894731615,0.09292,77614.0,77596.0,0.012904]
[1769894732408,0.012901,77618.0,77596.0,0.012904]
[1769894732608,0.012901,77618.0,77598.0,0.012904]
[1769894732817,0.012901,77618.0,77599.0,0.09292]
[1769894733612,0.27303299,77616.0,77585.0,0.09292]
[1769894733812,0.012902,77612.0,77593.0,0.012905]
[1769894734318,0.012902,77612.0,77594.0,0.43284]
[1769894734708,0.012901,77615.0,77594.0,0.43284]
[1769894735224,0.012899,77625.0,77604.0,0.012903]
[1769894735517,0.012899,77625.0,77606.0,0.012902]
[1769894735713,0.012899,77625.0,77596.0,0.012904]
[1769894735714,0.27303299,77625.0,77596.0,0.012904]
[1769894735912,0.012901,77614.0,77596.0,0.012904]
[1769894736510,0.012902,77612.0,77594.0,0.43284]
[1769894737214,0.27303299,77617.0,77594.0,0.43284]
[1769894737215,0.22793499,77617.0,77594.0,0.43284]
[1769894737421,0.012903,77604.0,77594.0,0.09292]
[1769894737717,0.012903,77602.0,77587.0,0.09292]
[1769894738119,0.09292,77609.0,77578.0,0.012907]
[1769894738120,0.012904,77595.0,77578.0,0.012907]
[1769894738315,0.012902,77607.0,77576.0,0.09292]
[1769894738518,0.012906,77583.0,77566.0,0.012909]
[1769894738814,0.012906,77583.0,77567.0,0.09292]
[1769894739023,0.012907,77577.0,77567.0,0.09292]
[1769894739315,0.012908,77573.0,77555.0,0.012911]
[1769894739511,0.012909,77570.0,77553.0,0.09292]
[1769894739713,0.33988,77580.0,77553.0,0.09292]
[1769894739915,0.33988,77580.0,77549.0,0.012912]
[1769894739916,0.27529435,77579.0,77551.0,0.09292]
[1769894740218,0.27529435,77576.0,77551.0,0.09292]
[1769894740619,0.012908,77572.0,77551.0,0.105832]
[1769894742323,0.001,77570.0,77551.0,0.39282572]
[1769894742517,0.09292,77586.0,77558.0,0.31281572]
[1769894742712,0.012907,77582.0,77558.0,0.31281572]
[1769894742917,0.012907,77579.0,77558.0,0.29990572]
[1769894743116,0.09292,77586.0,77566.0,0.29990572]
[1769894743320,0.012905,77593.0,77568.0,0.31281472]
[1769894743515,0.012905,77591.0,77568.0,0.31281472]
[1769894743715,0.012905,77594.0,77568.0,0.31281472]
[1769894743921,0.012904,77597.0,77573.0,0.29990572]
[1769894744118,0.012904,77597.0,77574.0,0.012908]
[1769894744313,0.29858345,77603.0,77567.0,0.4328]
[1769894744513,0.012906,77587.0,77567.0,0.4328]
[1769894744721,0.012905,77593.0,77568.0,0.29990572]
[1769894745015,0.28448845,77603.0,77571.0,0.012908]
[1769894745222,0.28448845,77603.0,77568.0,0.29990572]
[1769894745822,0.012905,77590.0,77568.0,0.31281472]
[1769894746222,0.012905,77590.0,77570.0,0.31281372]
[1769894746823,0.012905,77594.0,77570.0,0.31281372]
[1769894747019,0.105824,77597.0,77570.0,0.31281372]
[1769894747219,0.012904,77595.0,77570.0,0.31281372]
[1769894747420,0.012904,77595.0,77573.0,0.29990572]
[1769894747823,0.09292,77597.0,77573.0,0.29990572]
[1769894748024,0.012905,77593.0,77574.0,0.43284]
[1769894748620,0.012905,77593.0,77570.0,0.012908]
[1769894748621,0.012908,77575.0,77553.0,0.29990572]
[1769894748822,0.012908,77576.0,77554.0,0.09292]
[1769894749022,0.29858345,77577.0,77554.0,0.09292]
[1769894749326,0.012909,77570.0,77554.0,0.09292]
[1769894749624,0.09292,77569.0,77554.0,0.09292]
[1769894749922,0.29858345,77558.0,77536.0,0.012914]
[1769894750123,0.01291,77559.0,77536.0,0.012914]
[1769894750124,0.29858345,77556.0,77536.0,0.012914]
[1769894750424,0.29858345,77556.0,77531.0,0.09292]
[1769894750626,0.012911,77553.0,77532.0,0.012915]
[1769894750927,0.31149445,77556.0,77532.0,0.012915]
[1769894751227,0.012911,77554.0,77532.0,0.012915]
[1769894752024,0.28249445,77556.0,77532.0,0.012915]
[1769894752425,0.012911,77554.0,77531.0,0.09292]
[1769894752724,0.012911,77554.0,77531.0,0.105835]
[1769894752928,0.28249445,77556.0,77533.0,0.012915]
[1769894753427,0.28249445,77556.0,77531.0,0.09292]
[1769894754922,0.012912,77552.0,77531.0,0.09292]
[1769894755229,0.01291,77564.0,77531.0,0.09292]
[1769894755230,0.29858345,77598.0,77557.0,0.29990572]
[1769894755529,0.012905,77590.0,77558.0,0.43288]
[1769894755727,0.09292,77589.0,77559.0,0.29990572]
[1769894756226,0.09292,77589.0,77561.0,0.29990572]
[1769894756432,0.19344,77588.0,77573.0,0.012908]
[1769894756726,0.09292,77599.0,77578.0,0.012907]
[1769894756920,0.09292,77600.0,77574.0,0.29990572]
[1769894757128,0.09292,77600.0,77573.0,0.33996]
[1769894757129,0.012901,77616.0,77594.0,0.012904]
[1769894757323,0.012901,77616.0,77594.0,0.105824]
[1769894757520,0.19344,77614.0,77594.0,0.105824]
[1769894758026,0.19344,77614.0,77596.0,0.012904]
[1769894758430,0.19344,77613.0,77598.0,0.012904]
[1769894758623,0.19344,77616.0,77598.0,0.012904]
[1769894758928,0.19344,77614.0,77598.0,0.012904]
[1769894759231,0.15744,77612.0,77598.0,0.012904]
[1769894759432,0.15744,77614.0,77598.0,0.012904]
[1769894759626,0.15744,77615.0,77598.0,0.012904]
[1769894760026,0.15744,77613.0,77598.0,0.012904]
[1769894760323,0.31148245,77628.0,77606.0,0.012902]
[1769894760634,0.31148245,77628.0,77602.0,0.012903]
[1769894760829,0.15744,77626.0,77602.0,0.012903]
[1769894761034,0.15744,77622.0,77602.0,0.012903]
[1769894761226,0.09292,77627.0,77602.0,0.012903]
[1769894761227,0.15744,77623.0,77602.0,0.012903]
[1769894761525,0.15744,77622.0,77602.0,0.012903]
[1769894761726,0.31148345,77620.0,77594.0,0.09292]
[1769894761926,0.29858345,77619.0,77596.0,0.012904]
[1769894762129,0.29858345,77619.0,77594.0,0.09292]
[1769894762826,0.012901,77618.0,77595.0,0.012904]
[1769894763025,0.09292,77617.0,77601.0,0.012903]
[1769894763332,0.09292,77634.0,77612.0,0.012901]
[1769894763737,0.15744,77626.0,77612.0,0.012901]
[1769894763932,0.09292,77634.0,77609.0,0.09292]
[1769894763933,0.15744,77632.0,77614.0,0.012901]
[1769894764128,0.25036,77634.0,77614.0,0.012901]
[1769894764437,0.25036,77634.0,77609.0,0.09292]
[1769894764438,0.15744,77631.0,77609.0,0.105822]
[1769894764644,0.012898,77633.0,77609.0,0.105822]
[1769894764936,0.105818,77634.0,77612.0,0.012901]
[1769894765132,0.012899,77630.0,77609.0,0.09292]
[1769894765335,0.09292,77634.0,77580.0,0.2707498]
[1769894765336,0.29858345,77625.0,77597.0,0.105824]
[1769894765537,0.29858345,77618.0,77597.0,0.09292]
[1769894765938,0.15744,77615.0,77597.0,0.09292]
[1769894766435,0.15744,77614.0,77598.0,0.012904]
[1769894766634,0.15744,77615.0,77598.0,0.012904]
[1769894767036,0.15744,77613.0,77598.0,0.012904]
[1769894767238,0.09344,77613.0,77597.0,0.09292]
[1769894767438,0.09344,77612.0,77597.0,0.105824]
[1769894767743,0.09344,77615.0,77597.0,0.105824]
[1769894767940,0.09288,77629.0,77601.0,0.2730631]
[1769894769033,0.09288,77629.0,77597.0,0.09292]
[1769894769237,0.012901,77618.0,77592.0,0.2730631]
[1769894769432,0.09288,77629.0,77608.0,0.2730631]
[1769894769634,0.09288,77629.0,77593.0,0.012905]
[1769894769635,0.29699707,77628.0,77609.0,0.09288]
[1769894769935,0.29699707,77626.0,77607.0,0.09288]
[1769894770133,0.012899,77625.0,77607.0,0.09288]
[1769894770340,0.09344,77619.0,77607.0,0.09288]
[1769894770542,0.09288,77629.0,77608.0,0.2730631]